bitfinex/quotes_SOLUSD_20230402
["timestamp","ask_amount","ask_price","bid_price","bid_amount"]
[1680415574717,17.0,21.068,21.058,10.0]
[1680415576226,17.0,21.068,21.057,20.0]
[1680415578414,17.0,21.068,21.058,30.0]
[1680415578837,10.0,21.069,21.058,30.0]
[1680415579019,17.0,21.068,21.059,10.0]
[1680415579511,17.0,21.068,21.058,30.0]
[1680415580020,10.0,21.067,21.057,20.0]
[1680415580333,10.0,21.065,21.057,20.0]
[1680415581927,17.0,21.066,21.057,20.0]
[1680415588434,10.0,21.067,21.057,20.0]
[1680415588638,10.0,21.065,21.057,20.0]
[1680415589748,10.0,21.067,21.057,20.0]
[1680415589947,10.0,21.065,21.057,20.0]
[1680415591842,10.0,21.067,21.057,20.0]
[1680415592046,10.0,21.065,21.057,20.0]
[1680415594546,10.0,21.067,21.057,20.0]
[1680415594749,10.0,21.065,21.057,20.0]
[1680415598446,10.0,21.067,21.057,20.0]
[1680415598654,17.0,21.066,21.057,20.0]
[1680415598960,10.0,21.065,21.057,20.0]
[1680415599754,17.0,21.066,21.057,20.0]
[1680415604255,10.0,21.069,21.057,20.0]
[1680415604457,10.0,21.067,21.057,20.0]
[1680415605440,17.0,21.068,21.057,20.0]
[1680415609149,10.0,21.067,21.057,20.0]
[1680415614844,10.0,21.065,21.057,20.0]
[1680415618267,17.0,21.066,21.057,20.0]
[1680415619164,10.0,21.065,21.057,20.0]
[1680415619362,10.0,21.063,21.057,20.0]
[1680415620466,17.0,21.064,21.057,20.0]
[1680415622772,10.0,21.065,21.057,20.0]
[1680415622954,10.0,21.063,21.057,20.0]
[1680415624065,10.0,21.065,21.057,20.0]
[1680415624265,10.0,21.063,21.057,20.0]
[1680415624976,17.0,21.064,21.057,20.0]
[1680415628575,10.0,21.065,21.057,20.0]
[1680415628773,17.0,21.064,21.057,20.0]
[1680415628975,30.0,21.063,21.057,20.0]
[1680415629157,10.0,21.061,21.057,20.0]
[1680415629363,17.0,21.06,21.057,20.0]
[1680415630274,10.0,21.059,21.047,10.0]
[1680415630458,10.0,21.059,21.049,10.0]
[1680415631387,10.0,21.059,21.05,30.0]
[1680415631680,10.0,21.059,21.051,10.0]
[1680415633090,10.0,21.059,21.049,10.0]
[1680415634276,10.0,21.059,21.05,19.004216]
[1680415634480,10.0,21.059,21.051,10.0]
[1680415634972,10.0,21.059,21.05,19.004216]
[1680415636480,17.0,21.06,21.05,19.004216]
[1680415650669,10.0,21.061,21.05,19.004216]
[1680415650871,10.0,21.059,21.05,19.004216]
[1680415658296,17.0,21.06,21.05,19.004216]
[1680415659298,17.0,21.06,21.047,10.0]
[1680415659478,17.0,21.06,21.049,10.0]
[1680415661801,10.0,21.059,21.048,30.0]
[1680415661983,17.0,21.058,21.048,30.0]
[1680415662291,10.0,21.057,21.047,10.0]
[1680415663096,10.0,21.057,21.049,10.0]
[1680415663596,17.0,21.058,21.049,10.0]
[1680415665400,17.0,21.058,21.049,29.004523]
[1680415667603,17.0,21.058,21.049,19.004523]
[1680415669491,10.0,21.059,21.049,19.004523]
[1680415669704,17.0,21.058,21.049,19.004523]
[1680415678209,10.0,21.058,21.049,19.004523]
[1680415679614,10.0,21.058,21.047,10.0]
[1680415679907,10.0,21.058,21.049,10.0]
[1680415680209,27.0,21.059,21.049,10.0]
[1680415681313,10.0,21.058,21.048,30.0]
[1680415681503,10.0,21.056,21.047,10.0]
[1680415682413,10.0,21.058,21.049,10.0]
[1680415682711,17.0,21.057,21.049,10.0]
[1680415683823,16.0,21.057,21.049,10.0]
[1680415684015,10.0,21.059,21.049,10.0]
[1680415685014,21.39,21.06,21.049,10.0]
[1680415685820,10.0,21.058,21.049,10.0]
[1680415686024,17.0,21.057,21.049,10.0]
[1680415686801,10.0,21.058,21.049,10.0]
[1680415687098,17.0,21.057,21.049,10.0]
[1680415689723,10.0,21.058,21.049,10.0]
[1680415689926,17.0,21.057,21.049,10.0]
[1680415692815,10.0,21.058,21.049,10.0]
[1680415693016,10.0,21.056,21.048,57.0]
[1680415693609,10.0,21.058,21.048,57.0]
[1680415693808,17.0,21.057,21.048,57.0]
[1680415696226,10.0,21.058,21.048,27.0]
[1680415696417,10.0,21.056,21.048,27.0]
[1680415696729,10.0,21.058,21.048,27.0]
[1680415696926,17.0,21.057,21.048,27.0]
[1680415699732,10.0,21.056,21.048,27.0]
[1680415699920,17.0,21.055,21.048,27.0]
[1680415701732,10.0,21.056,21.048,27.0]
[1680415701931,10.0,21.056,21.045,10.0]
[1680415701932,17.0,21.055,21.045,10.0]
[1680415702134,17.0,21.055,21.047,10.0]
[1680415702635,17.0,21.055,21.046,30.0]
[1680415709930,10.0,21.058,21.046,30.0]
[1680415710323,10.0,21.056,21.046,30.0]
[1680415710522,10.0,21.054,21.046,30.0]
[1680415711234,10.0,21.056,21.046,30.0]
[1680415711437,10.0,21.054,21.046,30.0]
[1680415713039,10.0,21.056,21.046,30.0]
[1680415713236,10.0,21.054,21.046,30.0]
[1680415713924,10.0,21.056,21.046,30.0]
[1680415714125,17.0,21.055,21.046,30.0]
[1680415717032,17.0,21.055,21.045,19.006456]
[1680415718032,17.0,21.055,21.047,10.0]
[1680415720147,17.0,21.055,21.046,40.0]
[1680415720442,17.0,21.055,21.046,30.0]
[1680415726152,10.0,21.056,21.046,30.0]
[1680415726352,17.0,21.055,21.046,30.0]
[1680415728038,10.0,21.056,21.046,30.0]
[1680415728238,17.0,21.055,21.046,30.0]
[1680415730252,10.0,21.056,21.046,30.0]
[1680415730455,10.0,21.054,21.046,30.0]
[1680415730750,10.0,21.056,21.046,30.0]
[1680415730950,17.0,21.053,21.046,30.0]
[1680415731330,17.0,21.055,21.046,30.0]
[1680415731752,17.0,21.055,21.045,19.006456]
[1680415733657,17.0,21.055,21.046,30.0]
[1680415733854,10.0,21.056,21.047,10.0]
[1680415734040,17.0,21.055,21.046,30.0]
[1680415734655,10.0,21.056,21.046,30.0]
[1680415734862,17.0,21.055,21.046,30.0]
[1680415735346,122.7598,21.064,21.046,30.0]
[1680415735660,122.7598,21.064,21.047,10.0]
[1680415736047,7.13733726,21.062,21.047,10.0]
[1680415736552,7.13733726,21.062,21.049,10.0]
[1680415737057,10.0,21.06,21.049,10.0]
[1680415737246,17.0,21.059,21.049,10.0]
[1680415737843,10.0,21.06,21.049,10.0]
[1680415738056,17.0,21.059,21.048,30.0]
[1680415739146,10.0,21.06,21.048,30.0]
[1680415739343,17.0,21.059,21.048,30.0]
[1680415740959,10.0,21.058,21.048,30.0]
[1680415741148,17.0,21.057,21.046,30.0]
[1680415741340,10.0,21.056,21.046,30.0]
[1680415741541,17.0,21.055,21.046,30.0]
[1680415742966,10.0,21.056,21.046,30.0]
[1680415743265,17.0,21.055,21.046,30.0]
[1680415745064,10.0,21.056,21.046,30.0]
[1680415745256,17.0,21.055,21.046,30.0]
[1680415745956,10.0,21.056,21.046,30.0]
[1680415746164,17.0,21.055,21.046,30.0]
[1680415747364,17.0,21.057,21.046,30.0]
[1680415749866,10.0,21.058,21.046,30.0]
[1680415750165,17.0,21.057,21.046,30.0]
[1680415751455,17.0,21.059,21.047,10.0]
[1680415751954,17.0,21.059,21.048,30.0]
[1680415752167,17.0,21.059,21.049,10.0]
[1680415753967,17.0,21.059,21.047,10.0]
[1680415756676,17.0,21.059,21.049,10.0]
[1680415757277,17.0,21.059,21.048,30.0]
[1680415758181,17.0,21.059,21.045,19.006456]
[1680415758182,10.0,21.058,21.045,19.006456]
[1680415758363,17.0,21.057,21.047,10.0]
[1680415758674,17.0,21.057,21.046,30.0]
[1680415759255,17.0,21.057,21.045,19.006456]
[1680415764980,17.0,21.057,21.032,411.94]
[1680415765278,17.0,21.057,21.045,10.0]
[1680415766179,17.0,21.057,21.044,30.0]
[1680415766398,17.0,21.057,21.046,10.0]
[1680415767174,17.0,21.057,21.045,30.0]
[1680415768287,17.0,21.057,21.044,10.0]
[1680415769280,17.0,21.057,21.046,10.0]
[1680415769772,17.0,21.057,21.045,30.0]
[1680415773382,17.0,21.057,21.045,30.0]
[1680415778177,17.0,21.057,21.043,130.763192]
[1680415778485,10.0,21.056,21.043,130.763192]
[1680415778683,10.0,21.054,21.043,130.763192]
[1680415778887,17.0,21.053,21.043,130.763192]
[1680415779581,10.0,21.054,21.043,130.763192]
[1680415779778,17.0,21.053,21.043,130.763192]
[1680415780490,17.0,21.055,21.043,111.7549]
[1680415781183,10.0,21.053,21.043,111.7549]
[1680415781394,10.0,21.051,21.043,111.7549]
[1680415781568,20.0,21.052,21.043,111.7549]
[1680415781769,17.0,21.051,21.043,111.7549]
[1680415786978,21.39,21.05,21.043,111.7549]
[1680415787296,17.0,21.049,21.043,111.7549]
[1680415787795,17.0,21.049,21.042,19.009803]
[1680415800465,17.0,21.049,21.037,14.78794002]
[1680415800617,17.0,21.049,21.039,10.0]
[1680415800810,17.0,21.049,21.037,14.78794002]
[1680415801203,17.0,21.049,21.034,10.0]
[1680415801603,17.0,21.049,21.036,10.0]
[1680415803928,17.0,21.049,21.038,10.0]
[1680415805827,17.0,21.049,21.036,10.0]
[1680415807415,17.0,21.049,21.037,30.0]
[1680415807622,17.0,21.049,21.038,10.0]
[1680415811141,17.0,21.049,21.036,10.0]
[1680415815638,24.13733726,21.049,21.036,10.0]
[1680415816040,24.13733726,21.049,21.034,29.016399]
[1680415816225,24.13733726,21.049,21.036,10.0]
[1680415818841,24.13733726,21.049,21.035,30.0]
[1680415820157,24.13733726,21.049,21.034,29.016399]
[1680415831265,24.13733726,21.049,21.034,19.016399]
[1680415834164,24.13733726,21.049,21.035,10.0]
[1680415836963,24.13733726,21.049,21.034,19.016399]
[1680415846325,24.13733726,21.049,21.033,116.9294]
[1680415848671,24.13733726,21.049,21.03,20.0]
[1680415848859,24.13733726,21.049,21.034,10.0]
[1680415853763,21.39,21.04,21.033,30.0]
[1680415853961,17.0,21.039,21.02,35.64496785]
[1680415854276,17.0,21.039,21.023,10.0]
[1680415854974,17.0,21.039,21.033,24.137337]
[1680415855476,24.13733726,21.039,21.033,24.137337]
[1680415858375,7.13733726,21.039,21.033,24.137337]
[1680415858577,21.39,21.04,21.033,24.137337]
[1680415859782,17.0,21.039,21.033,24.137337]
[1680415865783,17.0,21.039,21.025,10.0]
[1680415865973,17.0,21.039,21.027,10.0]
[1680415881900,17.0,21.039,21.029,10.0]
[1680415891405,17.0,21.039,21.027,10.0]
[1680415891608,17.0,21.039,21.029,10.0]
[1680415895609,21.39,21.04,21.029,10.0]
[1680415895808,119.377,21.043,21.03,21.47]
[1680415896007,119.377,21.043,21.031,30.0]
[1680415897205,17.0,21.042,21.031,30.0]
[1680415897814,17.0,21.042,21.033,10.0]
[1680415904621,17.0,21.042,21.032,30.0]
[1680415905821,17.0,21.042,21.031,30.0]
[1680415906028,17.0,21.042,21.033,10.0]
[1680415909532,17.0,21.042,21.032,30.0]
[1680415909827,17.0,21.042,21.031,20.0]
[1680415910123,17.0,21.042,21.032,20.0]
[1680415910925,17.0,21.042,21.03,20.0]
[1680415911234,17.0,21.042,21.031,40.0]
[1680415911526,17.0,21.042,21.033,10.0]
[1680415912331,17.0,21.042,21.032,20.0]
[1680415930511,10.0,21.047,21.032,20.0]
[1680415930512,115.2634,21.048,21.032,20.0]
[1680415930651,115.2634,21.048,21.035,10.0]
[1680415931576,115.2634,21.048,21.036,30.0]
[1680415931852,10.0,21.046,21.036,30.0]
[1680415932054,17.0,21.045,21.036,30.0]
[1680415942567,17.0,21.045,21.034,10.0]
[1680415943357,17.0,21.045,21.036,10.0]
[1680415949362,17.0,21.045,21.035,30.0]
[1680415953465,17.0,21.045,21.034,10.0]
[1680415953853,17.0,21.045,21.036,10.0]
[1680415956462,17.0,21.045,21.034,10.0]
[1680415958250,17.0,21.045,21.036,10.0]
[1680415963165,17.0,21.045,21.035,30.0]
[1680415964251,17.0,21.045,21.034,10.0]
[1680415965175,17.0,21.045,21.036,10.0]
[1680415968571,17.0,21.045,21.035,30.0]
[1680415970758,21.41,21.05,21.035,30.0]
[1680415970962,20.0,21.052,21.04,21.41]
[1680415971164,118.3257,21.054,21.041,20.0]
[1680415971374,118.3257,21.054,21.042,10.0]
[1680415971880,118.3257,21.054,21.042,40.0]
[1680415976877,17.0,21.053,21.042,40.0]
[1680415979368,17.0,21.053,21.042,30.0]
[1680415985777,21.39,21.05,21.042,30.0]
[1680415985986,17.0,21.049,21.042,30.0]
[1680415986181,10.0,21.048,21.042,30.0]
[1680415986382,17.0,21.047,21.042,30.0]
[1680415986567,17.0,21.047,21.033,10.0]
[1680415986763,17.0,21.047,21.035,10.0]
[1680415987370,10.0,21.048,21.035,10.0]
[1680415987571,17.0,21.047,21.035,10.0]
[1680415987775,17.0,21.047,21.037,10.0]
[1680415988683,10.0,21.048,21.037,10.0]
[1680415988882,17.0,21.047,21.037,10.0]
[1680415989270,10.0,21.048,21.037,10.0]
[1680415989466,17.0,21.047,21.037,10.0]
[1680415990085,10.0,21.048,21.037,10.0]
[1680415990279,17.0,21.047,21.037,10.0]
[1680415990972,10.0,21.048,21.037,10.0]
[1680415991173,17.0,21.047,21.037,10.0]
[1680415992088,17.0,21.047,21.035,10.0]
[1680415992292,10.0,21.048,21.035,10.0]
[1680415992474,17.0,21.047,21.035,10.0]
[1680415993169,17.0,21.047,21.03,26.89]
[1680415993373,20.0,21.046,21.031,30.0]
[1680415993571,10.0,21.045,21.032,10.0]
[1680415993774,37.0,21.044,21.032,10.0]
[1680415994191,112.8901,21.043,21.027,10.0]
[1680415994379,10.0,21.041,21.027,10.0]
[1680415994582,17.0,21.04,21.029,10.0]
[1680415994780,17.0,21.042,21.029,10.0]
[1680415995594,17.0,21.042,21.031,10.0]
[1680415995986,17.0,21.042,21.03,30.0]
[1680415996983,17.0,21.042,21.029,10.0]
[1680415998997,17.0,21.042,21.027,10.0]
[1680415999206,17.0,21.042,21.029,10.0]
[1680416002129,17.0,21.042,21.028,30.0]
[1680416009003,17.0,21.042,21.027,30.0]
[1680416009710,10.0,21.041,21.027,30.0]
[1680416009899,17.0,21.04,21.027,30.0]
[1680416010103,10.0,21.039,21.027,30.0]
[1680416010313,10.0,21.037,21.027,30.0]
[1680416010514,17.0,21.036,21.027,30.0]
[1680416010716,17.0,21.038,21.027,30.0]
[1680416012316,17.0,21.038,21.026,21.39]
[1680416012760,17.0,21.038,21.023,50.56938162]
[1680416012916,17.0,21.038,21.025,10.0]
[1680416013832,17.0,21.038,21.027,10.0]
[1680416014719,17.0,21.038,21.026,30.0]
[1680416015523,17.0,21.038,21.026,30.0]
[1680416018125,17.0,21.038,21.022,10.0]
[1680416019015,17.0,21.038,21.025,10.0]
[1680416020124,17.0,21.038,21.027,10.0]
[1680416020306,17.0,21.038,21.026,30.0]
[1680416023510,10.0,21.038,21.026,30.0]
[1680416023717,17.0,21.037,21.026,30.0]
[1680416024828,10.0,21.037,21.026,30.0]
[1680416025013,17.0,21.036,21.026,30.0]
[1680416025416,10.0,21.037,21.026,30.0]
[1680416025615,17.0,21.036,21.026,30.0]
[1680416026230,10.0,21.037,21.026,30.0]
[1680416026429,17.0,21.036,21.026,30.0]
[1680416026815,10.0,21.037,21.026,30.0]
[1680416027014,17.0,21.036,21.026,30.0]
[1680416027421,10.0,21.037,21.026,30.0]
[1680416027626,17.0,21.036,21.026,30.0]
[1680416028229,10.0,21.037,21.026,30.0]
[1680416028524,17.0,21.036,21.026,30.0]
[1680416028924,10.0,21.037,21.026,30.0]
[1680416029222,17.0,21.036,21.026,30.0]
[1680416030232,10.0,21.037,21.026,30.0]
[1680416030436,17.0,21.036,21.026,30.0]
[1680416030824,10.0,21.037,21.026,30.0]
[1680416031024,17.0,21.036,21.026,30.0]
[1680416031423,10.0,21.039,21.026,30.0]
[1680416031424,10.0,21.037,21.026,30.0]
[1680416031624,17.0,21.036,21.026,30.0]
[1680416032021,10.0,21.037,21.026,30.0]
[1680416032223,17.0,21.036,21.026,30.0]
[1680416032739,10.0,21.037,21.026,30.0]
[1680416032917,17.0,21.036,21.026,30.0]
[1680416033521,10.0,21.037,21.026,30.0]
[1680416033723,17.0,21.036,21.026,30.0]
[1680416034137,10.0,21.037,21.026,30.0]
[1680416034335,17.0,21.036,21.026,30.0]
[1680416034838,10.0,21.037,21.026,30.0]
[1680416035138,17.0,21.036,21.026,30.0]
[1680416035534,10.0,21.037,21.026,30.0]
[1680416035730,17.0,21.036,21.026,30.0]
[1680416036331,10.0,21.037,21.026,30.0]
[1680416036631,17.0,21.036,21.026,30.0]
[1680416038436,10.0,21.039,21.036,0.1135473]
[1680416038437,10.0,21.037,21.036,0.1135473]
[1680416038630,27.0,21.037,21.036,0.1135473]
[1680416038831,17.0,21.037,21.036,0.1135473]
[1680416048043,17.0,21.037,21.036,0.01418863]
[1680416053138,24.13733726,21.037,21.036,0.01418863]
[1680416053536,17.0,21.037,21.036,0.01418863]
[1680416083257,10.0,21.039,21.036,0.01418863]
[1680416083469,17.0,21.037,21.036,0.01418863]
[1680416087661,17.0,21.037,21.025,30.0]
[1680416087968,10.0,21.037,21.025,30.0]
[1680416088168,10.0,21.035,21.025,30.0]
[1680416088476,17.0,21.034,21.025,30.0]
[1680416090872,17.0,21.034,21.023,117.9485]
[1680416091577,17.0,21.034,21.024,10.0]
[1680416091772,10.0,21.035,21.024,10.0]
[1680416091957,17.0,21.034,21.024,10.0]
[1680416093973,10.0,21.035,21.024,10.0]
[1680416094173,10.0,21.033,21.024,10.0]
[1680416094374,17.0,21.032,21.024,10.0]
[1680416094883,17.0,21.034,21.024,10.0]
[1680416098996,10.0,21.035,21.026,10.0]
[1680416099189,16.92382154,21.034,21.026,10.0]
[1680416099894,16.92382154,21.034,21.025,30.0]
[1680416100497,16.92382154,21.034,21.024,10.0]
[1680416101398,17.0,21.033,21.024,10.0]
[1680416101594,17.0,21.036,21.024,10.0]
[1680416101995,17.0,21.036,21.026,10.0]
[1680416103399,10.0,21.037,21.026,10.0]
[1680416103601,10.0,21.035,21.026,10.0]
[1680416103806,17.0,21.034,21.026,10.0]
[1680416104394,10.0,21.037,21.026,10.0]
[1680416105302,114.4333,21.045,21.026,10.0]
[1680416105799,17.0,21.038,21.026,10.0]
[1680416106106,10.0,21.037,21.026,10.0]
[1680416106401,17.0,21.036,21.026,10.0]
[1680416107190,10.0,21.037,21.026,10.0]
[1680416107392,17.0,21.036,21.026,10.0]
[1680416108108,17.0,21.038,21.026,10.0]
[1680416111591,17.0,21.039,21.026,10.0]
[1680416118608,17.0,21.039,21.026,261.036141]
[1680416120706,114.4333,21.045,21.031,10.0]
[1680416120906,21.51,21.05,21.031,10.0]
[1680416120907,20.0,21.042,21.031,10.0]
[1680416121403,20.0,21.048,21.031,10.0]
[1680416121609,10.0,21.047,21.031,10.0]
[1680416121808,10.0,21.045,21.031,10.0]
[1680416122001,20.0,21.044,21.031,10.0]
[1680416122199,10.0,21.042,21.031,10.0]
[1680416122404,17.0,21.041,21.031,10.0]
[1680416122909,10.0,21.042,21.031,10.0]
[1680416123108,17.0,21.041,21.031,10.0]
[1680416123508,10.0,21.042,21.031,10.0]
[1680416123698,17.0,21.041,21.031,10.0]
[1680416124093,10.0,21.042,21.031,10.0]
[1680416124299,17.0,21.041,21.033,10.0]
[1680416125013,21.51,21.05,21.033,10.0]
[1680416125214,21.51,21.05,21.033,40.0]
[1680416126311,17.0,21.049,21.033,40.0]
[1680416131305,17.0,21.049,21.041,10.0]
[1680416133328,7.13733726,21.055,21.041,10.0]
[1680416133510,10.0,21.053,21.041,10.0]
[1680416133709,20.0,21.052,21.041,10.0]
[1680416134512,17.0,21.051,21.041,10.0]
[1680416134721,17.0,21.052,21.041,10.0]
[1680416135916,10.0,21.052,21.041,10.0]
[1680416136117,17.0,21.051,21.041,10.0]
[1680416136917,10.0,21.052,21.041,10.0]
[1680416137118,17.0,21.051,21.041,10.0]
[1680416137922,21.51,21.064,21.042,20.0]
[1680416138113,21.51,21.064,21.043,10.0]
[1680416138314,10.0,21.056,21.043,10.0]
[1680416138525,10.0,21.054,21.043,10.0]
[1680416138923,17.0,21.053,21.043,10.0]
[1680416139930,10.0,21.054,21.043,10.0]
[1680416140227,17.0,21.053,21.043,10.0]
[1680416141128,10.0,21.054,21.043,10.0]
[1680416141317,17.0,21.053,21.043,10.0]
[1680416142021,10.0,21.054,21.043,10.0]
[1680416142225,17.0,21.053,21.043,10.0]
[1680416142518,17.0,21.055,21.043,10.0]
[1680416145539,17.0,21.055,21.042,20.0]
[1680416145837,10.0,21.054,21.042,10.0]
[1680416146021,10.0,21.052,21.042,10.0]
[1680416146423,17.0,21.051,21.042,10.0]
[1680416147035,10.0,21.052,21.042,10.0]
[1680416147238,17.0,21.051,21.042,10.0]
[1680416147734,10.0,21.052,21.042,10.0]
[1680416147921,17.0,21.051,21.042,10.0]
[1680416148323,10.0,21.052,21.042,10.0]
[1680416148620,17.0,21.051,21.042,10.0]
[1680416149346,17.0,21.051,21.041,20.0]
[1680416149642,10.0,21.052,21.041,20.0]
[1680416149824,17.0,21.051,21.041,20.0]
[1680416150547,10.0,21.052,21.041,20.0]
[1680416150723,17.0,21.051,21.041,20.0]
[1680416151624,10.0,21.052,21.041,20.0]
[1680416151825,17.0,21.051,21.041,20.0]
[1680416152925,10.0,21.052,21.041,20.0]
[1680416153241,17.0,21.051,21.041,20.0]
[1680416153439,119.7433,21.054,21.041,20.0]
[1680416153637,10.0,21.052,21.041,20.0]
[1680416153839,17.0,21.051,21.041,20.0]
[1680416154424,10.0,21.052,21.041,20.0]
[1680416154623,17.0,21.051,21.041,20.0]
[1680416155437,10.0,21.052,21.041,20.0]
[1680416155737,17.0,21.051,21.041,20.0]
[1680416156424,10.0,21.052,21.041,20.0]
[1680416156625,17.0,21.051,21.041,20.0]
[1680416157624,17.0,21.051,21.042,20.0]
[1680416157825,10.0,21.052,21.043,10.0]
[1680416158021,17.0,21.051,21.043,10.0]
[1680416158633,17.0,21.051,21.042,20.0]
[1680416159426,10.0,21.052,21.042,20.0]
[1680416159625,17.0,21.051,21.042,20.0]
[1680416160741,10.0,21.052,21.042,20.0]
[1680416160941,17.0,21.051,21.042,20.0]
[1680416162437,17.0,21.051,21.041,10.0]
[1680416162630,17.0,21.051,21.042,20.0]
[1680416164549,17.0,21.051,21.042,10.0]
[1680416165545,17.0,21.051,21.041,20.0]
[1680416167249,10.0,21.052,21.041,20.0]
[1680416167437,10.0,21.05,21.041,20.0]
[1680416167837,17.0,21.049,21.041,20.0]
[1680416168337,10.0,21.05,21.041,10.0]
[1680416168536,17.0,21.049,21.042,20.0]
[1680416168936,10.0,21.05,21.042,20.0]
[1680416169136,17.0,21.049,21.042,20.0]
[1680416169547,17.0,21.051,21.041,10.0]
[1680416169748,17.0,21.051,21.043,10.0]
[1680416170149,17.0,21.051,21.041,10.0]
[1680416170349,17.0,21.051,21.043,10.0]
[1680416171151,10.0,21.052,21.041,10.0]
[1680416171455,17.0,21.051,21.043,10.0]
[1680416172037,17.0,21.051,21.042,20.0]
[1680416172556,10.0,21.052,21.042,20.0]
[1680416172736,17.0,21.051,21.042,20.0]
[1680416174242,17.0,21.051,21.039,16.635]
[1680416174438,31.33,21.05,21.034,26.639]
[1680416174657,10.0,21.048,21.034,26.639]
[1680416174856,17.0,21.047,21.034,26.639]
[1680416175356,17.0,21.047,21.039,10.0]
[1680416175557,10.0,21.048,21.039,10.0]
[1680416175760,17.0,21.047,21.039,10.0]
[1680416176257,10.0,21.048,21.039,10.0]
[1680416176457,17.0,21.047,21.039,10.0]
[1680416176941,10.0,21.048,21.039,10.0]
[1680416177144,17.0,21.047,21.034,26.639]
[1680416178856,10.0,21.048,21.034,26.639]
[1680416179043,17.0,21.047,21.034,26.639]
[1680416180457,10.0,21.048,21.034,26.639]
[1680416180644,17.0,21.047,21.034,26.639]
[1680416182662,10.0,21.048,21.034,26.639]
[1680416182861,17.0,21.047,21.034,26.639]
[1680416184664,10.0,21.047,21.034,26.639]
[1680416184864,17.0,21.046,21.034,26.639]
[1680416185866,10.0,21.047,21.034,26.639]
[1680416186067,17.0,21.046,21.034,26.639]
[1680416186468,10.0,21.047,21.034,26.639]